bitfinex/quotes_BTCUSD_20250802
["timestamp","ask_amount","ask_price","bid_price","bid_amount"]
[1754116843968,3.7174363,113730.0,113720.0,0.0211015]
[1754116846701,2.99106809,113730.0,113720.0,0.0211015]
[1754116846937,3.7174363,113730.0,113720.0,0.0211015]
[1754116847154,3.73119963,113730.0,113720.0,0.0211015]
[1754116847806,3.00483142,113730.0,113720.0,0.0211015]
[1754116850468,2.98710142,113730.0,113720.0,0.0489815]
[1754116850909,0.69529842,113730.0,113720.0,0.0489815]
[1754116851133,2.98710142,113730.0,113720.0,0.0489815]
[1754116851356,2.81124633,113730.0,113720.0,0.0521415]
[1754116851580,2.98710142,113730.0,113720.0,0.0521415]
[1754116852908,0.69529842,113730.0,113720.0,0.0521415]
[1754116853160,2.98710142,113730.0,113720.0,0.0521415]
[1754116854277,2.84642142,113730.0,113720.0,0.0521415]
[1754116854977,2.86463142,113730.0,113720.0,0.0211015]
[1754116855843,0.57282842,113730.0,113720.0,0.0211015]
[1754116856092,2.86463142,113730.0,113720.0,0.0211015]
[1754116856319,2.84642142,113730.0,113720.0,0.0509215]
[1754116856525,2.84642142,113730.0,113720.0,0.0539215]
[1754116857001,3.40439708,113730.0,113720.0,0.0539215]
[1754116859030,1.11259408,113730.0,113720.0,0.0539215]
[1754116859242,3.40439708,113730.0,113720.0,0.0539215]
[1754116860097,3.98058274,113730.0,113720.0,0.0211015]
[1754116860774,2.86463142,113730.0,113720.0,0.0211015]
[1754116860992,3.98058274,113730.0,113720.0,0.0201015]
[1754116861441,3.42260708,113730.0,113720.0,0.0171015]
[1754116862144,3.56320708,113730.0,113720.0,0.0171015]
[1754116862404,4.12118274,113730.0,113720.0,0.0171015]
[1754116862635,4.13386141,113730.0,113720.0,0.0171015]
[1754116862878,4.13386141,113730.0,113720.0,0.0155015]
[1754116863110,1.84205841,113730.0,113720.0,0.0155015]
[1754116863337,4.13386141,113730.0,113720.0,0.0155015]
[1754116865572,4.23551032,113730.0,113720.0,0.0155015]
[1754116865796,4.24927531,113730.0,113720.0,0.0155015]
[1754116866470,1.95747231,113730.0,113720.0,0.0155015]
[1754116866703,4.24927531,113730.0,113720.0,0.0155015]
[1754116868695,3.13332399,113730.0,113720.0,0.0155015]
[1754116868927,4.24927531,113730.0,113720.0,0.0155015]
[1754116869380,2.63451399,113730.0,113720.0,0.0483215]
[1754116869614,2.53286508,113730.0,113720.0,0.0503915]
[1754116869844,3.54495874,113730.0,113720.0,0.0503915]
[1754116870981,3.36910365,113730.0,113720.0,0.0503915]
[1754116871209,4.1029344,113730.0,113720.0,0.0503915]
[1754116871439,3.54495874,113730.0,113720.0,0.0503915]
[1754116872332,1.25315574,113730.0,113720.0,0.0503915]
[1754116872546,3.54495874,113730.0,113720.0,0.0503915]
[1754116873405,3.53119375,113730.0,113720.0,0.0503915]
[1754116874420,3.94860941,113730.0,113720.0,0.0503915]
[1754116874635,4.08916941,113730.0,113720.0,0.0503915]
[1754116875274,4.08916941,113730.0,113720.0,0.0185015]
[1754116875926,4.08916941,113730.0,113720.0,0.0483215]
[1754116876593,2.97321809,113730.0,113720.0,0.0483215]
[1754116876808,4.08916941,113730.0,113720.0,0.0483215]
[1754116877469,4.10293423,113730.0,113720.0,0.0483215]
[1754116878356,1.81113123,113730.0,113720.0,0.0483215]
[1754116878608,4.10293423,113730.0,113720.0,0.0483215]
[1754116878828,2.98698291,113730.0,113720.0,0.0483215]
[1754116879050,4.10293423,113730.0,113720.0,0.0483215]
[1754116880399,1.44613123,113730.0,113720.0,0.0483215]
[1754116880617,3.73793423,113730.0,113720.0,0.0483215]
[1754116881068,3.73793423,113730.0,113720.0,0.0155015]
[1754116881286,3.77359325,113730.0,113720.0,0.0155015]
[1754116882402,4.59779314,113730.0,113720.0,0.0155015]
[1754116883302,4.58402832,113730.0,113720.0,0.0155015]
[1754116884300,4.61047432,113730.0,113720.0,0.0155015]
[1754116885608,3.476313,113730.0,113720.0,0.0155015]
[1754116885816,4.59226432,113730.0,113720.0,0.0155015]
[1754116886027,4.59226432,113730.0,113720.0,0.0444615]
[1754116886240,3.476313,113730.0,113720.0,0.0444615]
[1754116886448,4.59226432,113730.0,113720.0,0.0155015]
[1754116887070,4.61119432,113730.0,113720.0,0.0155015]
[1754116887699,3.495243,113730.0,113720.0,0.0155015]
[1754116887919,4.61119432,113730.0,113720.0,0.0155015]
[1754116891491,4.66410432,113730.0,113720.0,0.0155015]
[1754116896299,4.66610432,113730.0,113720.0,0.0155015]
[1754116897166,4.66910432,113730.0,113720.0,0.0155015]
[1754116898853,3.553153,113730.0,113720.0,0.0155015]
[1754116899135,4.66910432,113730.0,113720.0,0.0155015]
[1754116900281,5.26260289,113730.0,113720.0,0.00668669]
[1754116900723,4.37655034,113710.0,113700.0,0.00376152]
[1754116900947,4.60123023,113710.0,113700.0,0.00376152]
[1754116901165,4.60123023,113710.0,113700.0,0.00380942]
[1754116901387,4.61991023,113710.0,113700.0,0.00380942]
[1754116901625,4.56700023,113710.0,113700.0,0.00380942]
[1754116902287,4.54832023,113710.0,113700.0,0.03578942]
[1754116902739,4.56208854,113710.0,113700.0,0.03578942]
[1754116903203,4.54832023,113710.0,113700.0,0.03578942]
[1754116903442,4.55682023,113710.0,113700.0,0.03578942]
[1754116903663,4.55682023,113710.0,113700.0,0.00380942]
[1754116903880,4.55682023,113710.0,113700.0,0.03578942]
[1754116904538,4.57550023,113710.0,113700.0,0.00380942]
[1754116904775,4.55682023,113710.0,113700.0,0.00380942]
[1754116905019,4.58327123,113710.0,113700.0,0.03276942]
[1754116905250,4.58327123,113710.0,113700.0,0.03578942]
[1754116905931,4.59703956,113710.0,113700.0,0.03578942]
[1754116906163,4.0390639,113710.0,113700.0,0.03578942]
[1754116906387,3.8985839,113710.0,113700.0,0.03792942]
[1754116906613,4.0400639,113710.0,113700.0,0.03792942]
[1754116906873,4.59803956,113710.0,113700.0,0.03792942]
[1754116907329,3.47458824,113710.0,113700.0,0.03792942]
[1754116907630,4.0325639,113710.0,113700.0,0.03792942]
[1754116907882,4.59053956,113710.0,113700.0,0.03792942]
[1754116908355,4.0325639,113710.0,113700.0,0.03792942]
[1754116908589,3.8920839,113710.0,113700.0,0.03792942]
[1754116908817,3.80001292,113710.0,113700.0,0.03792942]
[1754116909751,3.24203726,113710.0,113700.0,0.03792942]
[1754116909973,3.65001292,113710.0,113700.0,0.03792942]
[1754116910202,3.80001292,113710.0,113700.0,0.03792942]
[1754116910444,2.81450233,113710.0,113700.0,0.03792942]
[1754116910720,2.33402233,113710.0,113700.0,0.03792942]
[1754116910937,2.33077233,113710.0,113700.0,0.59590508]
[1754116911184,2.30757133,113710.0,113700.0,0.03792942]
[1754116911415,2.30657133,113710.0,113700.0,0.03792942]
[1754116911656,2.30557133,113710.0,113700.0,0.03792942]
[1754116912376,0.35376833,113710.0,113700.0,0.03792942]
[1754116912861,0.35376833,113710.0,113700.0,0.03892942]
[1754116913089,0.34,113710.0,113700.0,0.03892942]
[1754116913559,0.34,113710.0,113700.0,0.12312931]
[1754116913778,0.34,113710.0,113700.0,0.12512931]
[1754116914456,0.34,113710.0,113700.0,0.68310497]
[1754116914682,0.5,113720.0,113700.0,1.24108063]
[1754116914903,0.5,113720.0,113710.0,0.67529555]
[1754116915123,0.34,113720.0,113710.0,0.67726555]
[1754116915777,0.34,113720.0,113710.0,0.11928989]
[1754116916454,2.631803,113720.0,113710.0,0.11928989]
[1754116917158,2.631803,113720.0,113710.0,0.67726555]
[1754116917346,0.34,113720.0,113710.0,0.67926555]
[1754116918020,0.34,113720.0,113710.0,0.12128989]
[1754116918237,0.34,113720.0,113710.0,0.12228989]
[1754116918904,0.34,113720.0,113710.0,0.68026555]
[1754116920077,0.34,113720.0,113710.0,0.12228989]
[1754116920309,0.34,113720.0,113710.0,0.12448846]
[1754116920764,3.18977866,113720.0,113710.0,0.12228989]
[1754116920992,2.631803,113720.0,113710.0,0.12228989]
[1754116921214,0.89797566,113720.0,113710.0,0.12228989]
[1754116921438,0.34,113720.0,113710.0,0.12228989]
[1754116922344,0.34,113720.0,113710.0,0.68026555]
[1754116922563,2.291803,113720.0,113710.0,0.68026555]
[1754116922997,2.291803,113720.0,113710.0,0.12228989]
[1754116923223,2.291803,113720.0,113710.0,0.12448846]
[1754116924697,2.291803,113720.0,113710.0,0.68246412]
[1754116924920,2.291803,113720.0,113710.0,0.12228989]
[1754116925198,2.291803,113720.0,113710.0,0.12448846]
[1754116926767,0.5137636,113730.0,113710.0,0.12448846]
[1754116926992,0.0137636,113730.0,113720.0,0.1738]
[1754116927218,0.0137636,113730.0,113720.0,0.25996989]
[1754116928564,0.0137636,113730.0,113720.0,0.98629487]
[1754116929014,0.0137636,113730.0,113720.0,1.02874389]
[1754116929241,0.5,113740.0,113720.0,1.05374389]
[1754116929464,0.51375998,113740.0,113730.0,0.81272305]
[1754116929691,0.51375998,113740.0,113730.0,0.14428989]
[1754116929905,0.51375998,113740.0,113730.0,0.14648807]
[1754116930186,0.51375998,113740.0,113730.0,0.87281305]
[1754116930419,0.51375998,113740.0,113730.0,0.91306389]
[1754116930644,0.01375998,113740.0,113730.0,0.91306389]
[1754116931594,0.01375998,113740.0,113730.0,0.91506389]
[1754116931823,0.01375998,113740.0,113730.0,0.19073891]
[1754116932004,0.41004334,113770.0,113730.0,0.91706389]
[1754116932268,0.01375857,113750.0,113740.0,0.25835989]
[1754116932465,0.41004334,113770.0,113740.0,0.26032989]
[1754116932723,0.41004334,113770.0,113750.0,0.03312]
[1754116932965,0.41004334,113770.0,113760.0,0.22736989]
[1754116933175,0.35375805,113770.0,113760.0,0.26048989]
[1754116933409,0.41004334,113770.0,113760.0,0.26048989]
[1754116933656,0.41012728,113770.0,113760.0,0.26048989]
[1754116933885,0.41210728,113770.0,113760.0,0.25546989]
[1754116935023,0.34206394,113770.0,113760.0,0.25546989]
[1754116935243,0.34206394,113770.0,113760.0,0.26048989]
[1754116936608,0.34206394,113770.0,113760.0,0.25743989]
[1754116936852,0.34206394,113770.0,113750.0,0.1414]
[1754116936853,3.45091526,113770.0,113750.0,0.1414]
[1754116937085,1.08700498,113760.0,113750.0,0.22559989]
[1754116937294,1.08899498,113760.0,113750.0,0.22559989]
[1754116937773,1.10009407,113760.0,113750.0,0.22559989]
[1754116938026,1.08207407,113760.0,113750.0,0.22559989]
[1754116938247,0.35574909,113760.0,113750.0,0.22659989]
[1754116938473,1.10275407,113760.0,113750.0,0.22659989]
[1754116938707,1.10275407,113760.0,113750.0,0.22559989]
[1754116938925,1.10275407,113760.0,113750.0,0.22759989]
[1754116939147,3.39455707,113760.0,113750.0,0.08619989]
[1754116939404,3.39455707,113760.0,113750.0,0.22759989]
[1754116939831,3.57036579,113760.0,113750.0,0.002]
[1754116940287,3.57036579,113760.0,113750.0,0.003]
[1754116940731,3.57036579,113760.0,113750.0,0.001]
[1754116940948,3.39455707,113760.0,113750.0,0.001]
[1754116941184,3.57036579,113760.0,113750.0,0.001]
[1754116941862,1.27856279,113760.0,113750.0,0.001]
[1754116942076,2.291803,113750.0,113740.0,0.14132]
[1754116942302,3.02012798,113750.0,113740.0,0.22551989]
[1754116942533,3.03814798,113750.0,113740.0,0.08419989]
[1754116943155,2.293803,113750.0,113740.0,0.08419989]
[1754116943402,3.02012798,113750.0,113740.0,0.11426989]
[1754116944290,2.293803,113750.0,113740.0,0.11526989]
[1754116944500,3.02012798,113750.0,113740.0,0.11526989]
[1754116944939,2.85156583,113750.0,113740.0,0.11526989]
[1754116945419,2.293803,113750.0,113740.0,0.11526989]
[1754116945667,2.84956583,113750.0,113740.0,0.12036989]
[1754116946530,2.291803,113750.0,113740.0,0.12036989]
[1754116947038,2.85154583,113750.0,113740.0,0.12036989]
[1754116947280,2.85154583,113750.0,113740.0,0.11729989]
[1754116947489,2.86530636,113750.0,113740.0,0.11526989]
[1754116947724,2.30754353,113750.0,113740.0,0.08519989]
[1754116947949,2.88676636,113750.0,113740.0,0.08519989]
[1754116948197,2.88676636,113750.0,113740.0,0.001]
[1754116948411,3.06259053,113750.0,113740.0,0.001]
[1754116948632,3.21259053,113750.0,113740.0,0.001]
[1754116949337,3.55259053,113750.0,113740.0,0.001]
[1754116950013,3.55359053,113750.0,113740.0,0.001]
[1754116950258,0.34,113730.0,113720.0,0.1718]
[1754116950473,0.89776283,113730.0,113720.0,0.25802989]
[1754116950714,0.89776283,113730.0,113720.0,0.26109989]
[1754116950935,0.91351502,113730.0,113720.0,0.26109989]
[1754116951604,0.91351502,113730.0,113720.0,0.26209989]
[1754116953323,0.89975283,113730.0,113720.0,0.26209989]
[1754116953527,0.89975283,113730.0,113720.0,0.26185989]
[1754116953743,1.47896566,113730.0,113720.0,0.001]
[1754116954213,0.92120283,113730.0,113720.0,0.001]
[1754116954428,3.21300583,113730.0,113710.0,0.1716]
[1754116954638,0.34,113720.0,113710.0,0.25891779]
[1754116954858,0.89975283,113720.0,113710.0,0.26094779]
[1754116957690,0.89975283,113720.0,113710.0,0.26194779]
[1754116958577,0.34199,113720.0,113710.0,0.26194779]
[1754116958793,0.89975283,113720.0,113710.0,0.26194779]
[1754116959267,3.19155583,113720.0,113710.0,0.26194779]
[1754116959499,3.21722016,113720.0,113710.0,0.26194779]
[1754116960618,2.65945733,113720.0,113710.0,0.26194779]
[1754116960835,3.21722016,113720.0,113710.0,0.26194779]
[1754116961055,2.65945733,113720.0,113710.0,0.26194779]
[1754116961268,3.21722016,113720.0,113710.0,0.26194779]
[1754116961939,3.24414337,113720.0,113710.0,0.26194779]
[1754116962186,2.68638054,113720.0,113710.0,0.26194779]
[1754116962396,2.68439054,113720.0,113710.0,0.26194779]
[1754116962614,3.24215337,113720.0,113710.0,0.26194779]
[1754116962837,2.68439054,113720.0,113710.0,0.26194779]
[1754116963295,0.39258754,113720.0,113710.0,0.26194779]
[1754116963741,0.95035037,113720.0,113710.0,0.26194779]
[1754116963955,0.39258754,113720.0,113710.0,0.26194779]
[1754116967349,0.95035037,113720.0,113710.0,0.26194779]
[1754116967574,0.96411399,113720.0,113710.0,0.26194779]
[1754116968560,0.96411399,113720.0,113710.0,0.12066779]
[1754116968814,3.27874699,113720.0,113710.0,0.0010479]
[1754116969013,3.27874699,113720.0,113710.0,0.1424479]
[1754116971939,3.27874699,113720.0,113710.0,0.0010479]
[1754116972895,0.98694399,113720.0,113710.0,0.0010479]
[1754116973108,3.27874699,113720.0,113710.0,0.0010479]
[1754116974740,2.71831416,113720.0,113710.0,0.0010479]
[1754116974960,3.25789699,113720.0,113710.0,0.0294579]
[1754116975394,3.25789699,113720.0,113710.0,0.0345879]
[1754116975618,3.25591699,113720.0,113710.0,0.0345879]
[1754116976068,3.25790699,113720.0,113710.0,0.0345879]
[1754116976293,3.25790699,113720.0,113710.0,0.0294579]
[1754116976508,2.68638054,113720.0,113710.0,0.0294579]
[1754116976710,3.24414337,113720.0,113710.0,0.0294579]
[1754116977646,3.24414337,113720.0,113710.0,0.0345879]
[1754116979445,3.25790739,113720.0,113710.0,0.0345879]
[1754116980426,3.25790739,113720.0,113710.0,0.0315679]
[1754116980665,3.25790739,113720.0,113710.0,0.0294579]
[1754116980875,3.25790739,113720.0,113710.0,0.0010479]
[1754116981091,3.27561739,113720.0,113710.0,0.0010479]
[1754116981545,3.25790739,113720.0,113710.0,0.0294579]
[1754116982937,3.25790739,113720.0,113710.0,0.0345879]
[1754116983177,0.96411439,113720.0,113710.0,0.0345879]
[1754116983417,3.25591739,113720.0,113710.0,0.0345879]
[1754116983858,2.69815456,113720.0,113710.0,0.0345879]
[1754116984093,3.25591739,113720.0,113710.0,0.0345879]
[1754116984763,3.25789739,113720.0,113710.0,0.0345879]
[1754116986386,3.24413337,113720.0,113710.0,0.0345879]
[1754116989025,3.25789808,113720.0,113710.0,0.0345879]
[1754116990029,3.25789808,113720.0,113710.0,0.0294579]
[1754116990887,2.70013525,113720.0,113710.0,0.0294579]
[1754116991089,3.25789808,113720.0,113710.0,0.0294579]
[1754116991714,2.70013525,113720.0,113710.0,0.0294579]
[1754116991930,3.25789808,113720.0,113710.0,0.0294579]
[1754116993026,2.70013525,113720.0,113710.0,0.0294579]
[1754116993231,3.25789808,113720.0,113710.0,0.0294579]
[1754116993435,3.25789808,113720.0,113710.0,0.0345879]
[1754116993709,2.90413337,113720.0,113710.0,0.0345879]
[1754116994341,2.90413337,113720.0,113710.0,0.0315679]
[1754116995032,2.34637054,113720.0,113710.0,0.0315679]
[1754116995244,2.90215337,113720.0,113710.0,0.0345879]
[1754116996101,2.90412337,113720.0,113710.0,0.0345879]
[1754116997599,2.91788726,113720.0,113710.0,0.0345879]
[1754116998464,2.36012443,113720.0,113710.0,0.0345879]
[1754116998736,2.91788726,113720.0,113710.0,0.0345879]
[1754116999168,2.91788726,113720.0,113710.0,0.0294579]
[1754116999610,2.91788726,113720.0,113710.0,0.0345879]
[1754117000269,2.91788726,113720.0,113710.0,0.0294579]
[1754117000910,2.36012443,113720.0,113710.0,0.0294579]
[1754117001129,2.91788726,113720.0,113710.0,0.0294579]
[1754117001327,2.91788726,113720.0,113710.0,0.0345879]
[1754117001752,2.91788726,113720.0,113710.0,0.0294579]
[1754117001967,2.93559726,113720.0,113710.0,0.0010479]
[1754117002598,2.91788726,113720.0,113710.0,0.0294579]
[1754117003031,2.36012443,113720.0,113710.0,0.0294579]
[1754117003235,2.91788726,113720.0,113710.0,0.0294579]
[1754117004325,2.36012443,113720.0,113710.0,0.0294579]
[1754117004542,2.91788726,113720.0,113710.0,0.0294579]
[1754117006794,3.25788726,113720.0,113710.0,0.0010479]
[1754117008124,3.27638726,113720.0,113710.0,0.0010479]
[1754117009728,3.45492781,113720.0,113710.0,0.0010479]
[1754117009945,4.15349064,113720.0,113710.0,0.0010479]
[1754117010195,3.58196392,113720.0,113710.0,0.0010479]
[1754117011814,3.40609337,113720.0,113710.0,0.0010479]
[1754117012258,3.40609337,113720.0,113710.0,4.79e-05]
[1754117012479,3.38592337,113720.0,113710.0,0.0290679]
[1754117012946,3.39968895,113720.0,113710.0,0.0290679]
[1754117013168,3.39968895,113720.0,113710.0,4.79e-05]
[1754117013418,3.40442337,113720.0,113710.0,4.79e-05]
[1754117013625,3.40709337,113720.0,113710.0,4.79e-05]
[1754117014995,3.40442337,113720.0,113710.0,4.79e-05]
[1754117015452,3.38592337,113720.0,113710.0,4.79e-05]
[1754117016361,3.39968893,113720.0,113710.0,4.79e-05]
[1754117017463,3.39968893,113720.0,113710.0,0.0290679]
[1754117018338,2.8419261,113720.0,113710.0,0.0290679]
[1754117018582,2.6991561,113720.0,113710.0,0.0340979]
[1754117018813,3.25691893,113720.0,113710.0,0.0340979]
[1754117020388,2.6991561,113720.0,113710.0,0.0340979]
[1754117020650,3.25691893,113720.0,113710.0,0.0340979]
[1754117021126,3.25889893,113720.0,113710.0,0.0340979]
[1754117021625,3.25691893,113720.0,113710.0,0.0340979]
[1754117024717,2.6991561,113720.0,113710.0,0.11829779]
[1754117024935,0.4073531,113720.0,113710.0,0.11829779]
[1754117025155,2.6991561,113720.0,113710.0,0.11829779]
[1754117025844,2.6981561,113720.0,113710.0,0.11829779]
[1754117026570,3.25591893,113720.0,113710.0,0.11929779]
[1754117026800,3.25789893,113720.0,113710.0,0.11426779]
[1754117027019,3.27639893,113720.0,113710.0,0.0010479]
[1754117027239,3.25789893,113720.0,113710.0,0.0010479]
[1754117027473,2.7001361,113720.0,113710.0,0.0300679]
[1754117027691,3.25789893,113720.0,113710.0,0.0300679]
[1754117027930,2.7001361,113720.0,113710.0,0.0300679]
[1754117028382,3.25789893,113720.0,113710.0,0.0350979]
[1754117028827,2.7001361,113720.0,113710.0,0.0350979]
[1754117029059,3.25591893,113720.0,113710.0,0.0350979]
[1754117029768,2.6981561,113720.0,113710.0,0.0350979]
[1754117030011,3.25591893,113720.0,113710.0,0.0350979]
[1754117030434,3.24215337,113720.0,113710.0,0.0350979]
[1754117032433,3.24215337,113720.0,113710.0,0.11929779]
[1754117033336,3.25591784,113720.0,113710.0,0.11929779]
[1754117033548,2.69815501,113720.0,113710.0,0.11929779]
[1754117035826,3.25591784,113720.0,113710.0,0.11929779]
[1754117036073,2.69815501,113720.0,113710.0,0.11929779]
[1754117036297,3.25789784,113720.0,113710.0,0.11929779]
[1754117037338,2.70013501,113720.0,113710.0,0.11929779]
[1754117037566,3.25789784,113720.0,113710.0,0.11929779]
[1754117040939,2.70013501,113720.0,113710.0,0.11929779]
[1754117041150,3.25591784,113720.0,113710.0,0.11929779]
[1754117041586,0.40635201,113720.0,113710.0,0.11929779]
[1754117041799,0.06635201,113720.0,113710.0,0.11929779]
[1754117042008,0.40635201,113720.0,113710.0,0.11929779]
[1754117043091,0.0394288,113720.0,113710.0,0.67706062]
[1754117043370,0.5,113730.0,113710.0,0.67706062]
[1754117043592,0.34,113740.0,113720.0,0.78268272]
[1754117043809,0.34,113740.0,113730.0,0.00215]
[1754117044024,0.34,113740.0,113730.0,0.11813989]
[1754117044935,0.35938713,113740.0,113730.0,0.11813989]
[1754117045386,0.35938713,113740.0,113730.0,0.11913989]
[1754117045848,0.85938713,113740.0,113730.0,0.11913989]
[1754117046271,0.87314902,113740.0,113730.0,0.11913989]
[1754117050253,1.43091185,113740.0,113730.0,0.11913989]
[1754117050454,1.43289185,113740.0,113730.0,0.11913989]
[1754117051061,1.43289185,113740.0,113730.0,0.08519989]
[1754117051062,1.45299185,113740.0,113730.0,0.08519989]
[1754117051330,0.89522902,113740.0,113730.0,0.22575989]
[1754117051533,1.45299185,113740.0,113730.0,0.22575989]
[1754117051677,1.43289185,113740.0,113730.0,0.22575989]
[1754117051881,1.43289185,113740.0,113730.0,0.25438989]
[1754117052286,3.72469485,113740.0,113730.0,0.25438989]
[1754117052486,3.72469485,113740.0,113730.0,0.22575989]
[1754117053663,3.22469485,113740.0,113730.0,0.22575989]
[1754117054106,3.22469485,113740.0,113730.0,0.22579989]
[1754117055809,2.66693202,113740.0,113730.0,0.25442989]
[1754117056046,3.22469485,113740.0,113730.0,0.25442989]
[1754117056900,0.37314902,113740.0,113730.0,0.25973989]
[1754117058242,0.93091185,113740.0,113730.0,0.25973989]
[1754117058680,0.37314902,113740.0,113730.0,0.25973989]
[1754117060453,0.93289185,113740.0,113730.0,0.25973989]
[1754117061385,0.93091185,113740.0,113730.0,0.25973989]
[1754117063448,0.37314902,113740.0,113730.0,0.25973989]
[1754117065338,0.93091185,113740.0,113730.0,0.25973989]
[1754117065995,0.93289185,113740.0,113730.0,0.25973989]
[1754117068635,0.37512902,113740.0,113730.0,0.25973989]
[1754117068866,0.93289185,113740.0,113730.0,0.25973989]
[1754117071918,0.37512902,113740.0,113730.0,0.25973989]
[1754117072152,0.93091185,113740.0,113730.0,0.25973989]
[1754117072596,0.37314902,113740.0,113730.0,0.25973989]
[1754117074749,0.93289185,113740.0,113730.0,0.25438989]
[1754117074976,0.95194185,113740.0,113730.0,0.22575989]
[1754117075196,0.95194185,113740.0,113730.0,0.08519989]
[1754117075413,3.24374485,113740.0,113730.0,0.22575989]
[1754117076318,2.68598202,113740.0,113730.0,0.22575989]
[1754117076571,3.22469485,113740.0,113730.0,0.22575989]
[1754117076814,3.22469485,113740.0,113730.0,0.25499989]
[1754117077700,3.22469485,113740.0,113730.0,0.11443989]
[1754117077916,3.22469485,113740.0,113730.0,0.25495989]
[1754117078139,0.37512902,113740.0,113730.0,0.25991989]
[1754117078364,0.37314902,113740.0,113730.0,0.25991989]
[1754117079473,0.37513902,113740.0,113730.0,0.25991989]
[1754117079713,0.93290185,113740.0,113730.0,0.25991989]
[1754117080376,0.93290185,113740.0,113730.0,0.11939989]
[1754117080589,0.93290185,113740.0,113730.0,0.25991989]
[1754117082604,0.37513902,113740.0,113730.0,0.25991989]
[1754117082817,0.93290185,113740.0,113730.0,0.25991989]
[1754117083518,0.37513902,113740.0,113730.0,0.25991989]
[1754117083964,0.03513902,113740.0,113730.0,0.25991989]
[1754117085306,0.03314902,113740.0,113730.0,0.25991989]
[1754117085757,0.03314902,113740.0,113730.0,0.81768272]
[1754117085976,0.01938713,113740.0,113730.0,0.81768272]
[1754117086412,0.5,113750.0,113730.0,0.81768272]
[1754117086651,0.55776283,113760.0,113740.0,0.11638989]
[1754117086882,2.291803,113750.0,113740.0,0.08714989]
[1754117087103,2.84956583,113760.0,113740.0,0.22967989]
[1754117087325,0.01960315,113750.0,113740.0,0.22967989]
[1754117087543,3.18956583,113760.0,113750.0,0.02924]
[1754117087766,2.633783,113760.0,113750.0,0.02924]
[1754117087985,3.19254583,113760.0,113750.0,0.02924]
[1754117088698,3.69254583,113760.0,113750.0,0.02924]
[1754117088929,3.70635321,113760.0,113750.0,0.02924]
[1754117089151,3.70535321,113760.0,113750.0,0.02924]
[1754117089642,3.70535321,113760.0,113750.0,0.02824]
[1754117090309,3.14859038,113760.0,113750.0,0.11243989]
[1754117090556,0.85480738,113760.0,113750.0,0.11739989]
[1754117090777,0.87472102,113760.0,113750.0,0.11739989]
[1754117091215,0.87670102,113760.0,113750.0,0.11739989]
[1754117093012,0.87570102,113760.0,113750.0,0.11739989]
[1754117093240,1.43346385,113760.0,113750.0,0.11839989]
[1754117093887,0.87570102,113760.0,113750.0,0.11839989]
[1754117094109,1.43346385,113760.0,113750.0,0.11839989]
[1754117094576,0.87570102,113760.0,113750.0,0.11839989]
[1754117096290,1.43346385,113760.0,113750.0,0.11839989]
[1754117096522,0.87570102,113760.0,113750.0,0.11839989]
[1754117096744,0.37570102,113760.0,113750.0,0.11839989]
[1754117096960,0.93346385,113760.0,113750.0,0.11839989]
[1754117097882,0.37570102,113760.0,113750.0,0.11839989]
[1754117098974,0.93346385,113760.0,113750.0,0.11839989]
[1754117099634,0.37570102,113760.0,113750.0,0.11839989]
[1754117099831,0.93346385,113760.0,113750.0,0.11839989]
[1754117101118,0.37570102,113760.0,113750.0,0.11839989]
[1754117101320,0.93346385,113760.0,113750.0,0.11839989]
[1754117103770,0.37570102,113760.0,113750.0,0.11839989]
[1754117103996,0.03372102,113760.0,113750.0,0.67616272]
[1754117104234,0.37372102,113760.0,113750.0,0.67616272]
[1754117104456,0.35996137,113760.0,113750.0,0.67616272]
[1754117104681,0.35996137,113760.0,113750.0,0.14482589]
[1754117104907,0.01996137,113760.0,113750.0,0.70258872]
[1754117105343,0.01996137,113760.0,113750.0,0.14482589]
[1754117105581,4.773e-05,113760.0,113750.0,0.14602369]
[1754117105791,4.773e-05,113760.0,113750.0,0.14702369]
[1754117106015,4.773e-05,113760.0,113750.0,0.70678652]
[1754117106239,4.773e-05,113760.0,113750.0,0.70458872]
[1754117106676,4.773e-05,113760.0,113750.0,0.14682589]
[1754117106897,4.773e-05,113760.0,113750.0,0.70678652]
[1754117107127,4.773e-05,113760.0,113750.0,0.70458872]
[1754117108728,0.01380483,113760.0,113750.0,0.17182589]
[1754117108951,0.01380483,113760.0,113750.0,0.77203774]
[1754117109405,0.01380483,113760.0,113750.0,0.77103774]
[1754117110075,0.01380483,113760.0,113750.0,0.21627491]
[1754117110293,0.01380483,113760.0,113750.0,0.77403774]
[1754117111440,0.01380483,113760.0,113750.0,0.21327491]
[1754117111662,0.01380483,113760.0,113750.0,0.76903774]
[1754117111882,0.01380483,113760.0,113750.0,0.76313774]
[1754117112323,0.01380483,113760.0,113750.0,0.76613774]
[1754117112817,0.01380483,113760.0,113750.0,0.77013774]
[1754117113253,4.773e-05,113760.0,113750.0,0.77013774]
[1754117114801,4.773e-05,113760.0,113750.0,1.32790057]
[1754117115462,4.773e-05,113760.0,113750.0,1.59670057]
[1754117116117,4.773e-05,113760.0,113750.0,1.03893774]
[1754117120119,4.773e-05,113760.0,113750.0,0.35273491]
[1754117120381,4.773e-05,113760.0,113750.0,0.91049774]
[1754117120606,4.773e-05,113760.0,113750.0,0.35273491]
[1754117120826,4.773e-05,113760.0,113750.0,0.21237491]
[1754117121045,4.773e-05,113760.0,113750.0,0.91049774]
[1754117121266,4.773e-05,113760.0,113750.0,0.88549774]
[1754117121485,4.773e-05,113760.0,113750.0,0.91049774]
[1754117122387,4.773e-05,113760.0,113750.0,0.35273491]
[1754117122611,4.773e-05,113760.0,113750.0,0.91049774]
[1754117123955,4.773e-05,113760.0,113750.0,0.35273491]
[1754117124185,4.773e-05,113760.0,113750.0,0.91049774]
[1754117124640,4.773e-05,113760.0,113750.0,0.35273491]
[1754117124868,4.773e-05,113760.0,113750.0,0.91049774]
[1754117125080,4.773e-05,113760.0,113750.0,0.35273491]
[1754117125295,4.773e-05,113760.0,113750.0,0.91049774]
[1754117125649,4.773e-05,113760.0,113750.0,0.77013774]
[1754117125857,4.773e-05,113760.0,113750.0,0.91049774]
[1754117126932,4.773e-05,113760.0,113750.0,0.35273491]
[1754117127137,4.773e-05,113760.0,113750.0,0.91049774]
[1754117127762,4.773e-05,113760.0,113750.0,0.21237491]
[1754117128048,0.00202773,113760.0,113750.0,0.13996589]
[1754117128262,0.02517773,113760.0,113750.0,0.28318589]
[1754117128474,0.00202773,113760.0,113750.0,0.31069589]
[1754117128686,0.00202773,113760.0,113750.0,0.28569589]
[1754117128886,0.00202773,113760.0,113750.0,0.31069589]
[1754117129723,0.00202773,113760.0,113750.0,0.31385589]
[1754117129932,0.00202773,113760.0,113750.0,0.31593589]
[1754117130554,0.00202773,113760.0,113750.0,0.29093589]
[1754117131201,0.00202773,113760.0,113750.0,0.31593589]
[1754117131639,4.773e-05,113760.0,113750.0,0.87369872]
[1754117132061,4.773e-05,113760.0,113750.0,0.31593589]
[1754117132271,4.773e-05,113760.0,113750.0,0.87369872]
[1754117135115,4.773e-05,113760.0,113750.0,0.31593589]
[1754117135544,4.773e-05,113760.0,113750.0,0.87369872]